fUST/lending_fUST_20240826
["ID","MTS","AMOUNT","RATE_DAILY","PERIOD"]
[335937166,1724622646754,-161.91259037,0.00013698,2]
[335937167,1724622646763,-500.0,0.00013698,2]
[335937168,1724622646773,-500.0,0.00013698,2]
[335937169,1724622646782,-500.0,0.00013698,2]
[335937170,1724622646790,-500.0,0.00013698,2]
[335937171,1724622646800,-500.0,0.00013698,2]
[335937172,1724622646811,-500.0,0.00013698,2]
[335937173,1724622646824,-1190.25,0.00013698,2]
[335937174,1724622646834,-947.78,0.00013698,2]
[335937175,1724622646843,-500.0,0.00013698,2]
[335937176,1724622646854,-500.0,0.00013698,2]
[335937177,1724622646862,-500.0,0.00013698,2]
[335937178,1724622646872,-500.0,0.00013698,2]
[335937179,1724622646881,-739.96,0.00013698,2]
[335937180,1724622646892,-500.0,0.00013698,2]
[335937181,1724622646901,-500.0,0.00013698,2]
[335937182,1724622646910,-500.0,0.00013698,2]
[335937183,1724622646919,-1359.17,0.00013698,2]
[335937184,1724622646928,-1201.03,0.00013698,2]
[335937185,1724622646937,-500.0,0.00013698,2]
[335937186,1724622646947,-500.0,0.00013698,2]
[335937187,1724622646956,-500.0,0.00013698,2]
[335937188,1724622646965,-897.54,0.00013698,2]
[335937189,1724622646974,-500.0,0.00013698,2]
[335937190,1724622646985,-500.0,0.00013698,2]
[335937191,1724622646994,-521.14,0.00013698,2]
[335937192,1724622647003,-500.0,0.00013698,2]
[335937193,1724622647012,-775.1,0.00013698,2]
[335937194,1724622647021,-500.0,0.00013698,2]
[335937195,1724622647031,-392.58198233,0.00013698,2]
[335937196,1724622647040,-1177.42,0.00013698,2]
[335937197,1724622647049,-500.0,0.00013698,2]
[335937198,1724622647058,-456.58512422,0.00013698,2]
[335937199,1724622647067,-500.0,0.00013698,2]
[335937200,1724622647076,-500.0,0.00013698,2]
[335937201,1724622647085,-500.0,0.00013698,2]
[335937202,1724622647094,-747.93,0.00013698,2]
[335937203,1724622647103,-571.36,0.00013698,2]
[335937204,1724622647112,-208.49917085,0.00013698,2]
[335937205,1724622647121,-568.15,0.00013698,2]
[335937206,1724622647130,-500.0,0.00013698,2]
[335937207,1724622647139,-500.0,0.00013698,2]
[335937208,1724622647148,-539.59,0.00013698,2]
[335937209,1724622647157,-532.75,0.00013698,2]
[335937210,1724622647166,-519.49808769,0.00013698,2]
[335937211,1724622647178,-500.0,0.00013698,2]
[335937212,1724622647187,-523.83537237,0.00013698,2]
[335937213,1724622647198,-500.0,0.00013698,2]
[335937214,1724622647208,-700.63,0.00013698,2]
[335937215,1724622647218,-885.09,0.00013698,2]
[335937216,1724622647228,-724.08,0.00013698,2]
[335937217,1724622647237,-845.1,0.00013698,2]
[335937218,1724622647247,-608.45,0.00013698,2]
[335937219,1724622647257,-500.0,0.00013698,2]
[335937220,1724622647266,-500.0,0.00013698,2]
[335937221,1724622647276,-500.0,0.00013698,2]
[335937222,1724622647285,-1116.31,0.00013698,2]
[335937223,1724622647294,-570.7,0.00013698,2]
[335937224,1724622647306,-500.0,0.00013698,2]
[335937225,1724622647316,-664.85,0.00013698,2]
[335937226,1724622647327,-571.73,0.00013698,2]
[335937227,1724622647340,-500.0,0.00013698,2]
[335937228,1724622647350,-509.83,0.00013698,2]
[335937229,1724622647361,-528.87,0.00013698,2]
[335937230,1724622647371,-500.0,0.00013698,2]
[335937231,1724622647380,-500.0,0.00013698,2]
[335937232,1724622647389,-684.92,0.00013698,2]
[335937233,1724622647398,-610.06,0.00013698,2]
[335937234,1724622647407,-500.0,0.00013698,2]
[335937235,1724622647417,-519.91,0.00013698,2]
[335937236,1724622647427,-500.0,0.00013698,2]
[335937237,1724622647436,-603.14,0.00013698,2]
[335937238,1724622647446,-537.21,0.00013698,2]
[335937239,1724622647457,-537.15,0.00013698,2]
[335937240,1724622647467,-489.5288527,0.00013698,2]
[335937241,1724622647477,-500.0,0.00013698,2]
[335937242,1724622647486,-500.0,0.00013698,2]
[335937243,1724622647495,-500.0,0.00013698,2]
[335937244,1724622647505,-500.0,0.00013698,2]
[335937245,1724622647514,-500.0,0.00013698,2]
[335937246,1724622647523,-521.24,0.00013698,2]
[335937247,1724622647533,-1208.21,0.00013698,2]
[335937248,1724622647542,-500.0,0.00013698,2]
[335937249,1724622647551,-500.0,0.00013698,2]
[335937250,1724622647561,-500.0,0.00013698,2]
[335937251,1724622647570,-500.0,0.00013698,2]
[335937252,1724622647580,-1330.88,0.00013698,2]
[335937253,1724622647590,-1304.82,0.00013698,2]
[335937254,1724622647599,-615.97,0.00013698,2]
[335937255,1724622647608,-559.36,0.00013698,2]
[335937256,1724622647618,-500.0,0.00013698,2]
[335937257,1724622647627,-500.0,0.00013698,2]
[335937258,1724622647636,-500.0,0.00013698,2]
[335937259,1724622647645,-500.0,0.00013698,2]
[335937260,1724622647654,-615.6,0.00013698,2]
[335937261,1724622647666,-500.0,0.00013698,2]
[335937262,1724622647675,-1201.3,0.00013698,2]
[335937263,1724622647684,-500.0,0.00013698,2]
[335937264,1724622647694,-1212.33,0.00013698,2]
[335937265,1724622647705,-500.0,0.00013698,2]
[335937266,1724622647716,-946.74,0.00013698,2]
[335937267,1724622647728,-500.0,0.00013698,2]
[335937268,1724622647738,-500.0,0.00013698,2]
[335937269,1724622647749,-954.79,0.00013698,2]
[335937270,1724622647759,-500.0,0.00013698,2]
[335937271,1724622647768,-500.0,0.00013698,2]
[335937272,1724622647778,-792.22,0.00013698,2]
[335937273,1724622647787,-717.37,0.00013698,2]
[335937274,1724622647796,-500.0,0.00013698,2]
[335937275,1724622647805,-578.83,0.00013698,2]
[335937276,1724622647819,-1007.71,0.00013698,2]
[335937277,1724622647828,-500.0,0.00013698,2]
[335937278,1724622647837,-1039.23,0.00013698,2]
[335937279,1724622647846,-500.0,0.00013698,2]
[335937280,1724622647855,-547.53,0.00013698,2]
[335937281,1724622647864,-500.0,0.00013698,2]
[335937282,1724622647875,-717.68,0.00013698,2]
[335937283,1724622647885,-1186.69,0.00013698,2]
[335937284,1724622647895,-524.86,0.00013698,2]
[335937285,1724622647906,-1034.32,0.00013698,2]
[335937286,1724622647916,-584.06,0.00013698,2]
[335937287,1724622647926,-500.0,0.00013698,2]
[335937288,1724622647939,-797.58,0.00013698,2]
[335937289,1724622647948,-500.0,0.00013698,2]
[335937290,1724622647960,-569.27,0.00013698,2]
[335937291,1724622647971,-1460.74,0.00013698,2]
[335937292,1724622647981,-500.0,0.00013698,2]
[335937293,1724622647989,-500.0,0.00013698,2]
[335937294,1724622647998,-500.0,0.00013698,2]
[335937295,1724622648007,-555.86718721,0.00013698,2]
[335937296,1724622648017,-500.0,0.00013698,2]
[335937297,1724622648027,-559.23,0.00013698,2]
[335937298,1724622648037,-500.0,0.00013698,2]
[335937299,1724622648047,-500.0,0.00013698,2]
[335937300,1724622648058,-500.0,0.00013698,2]
[335937301,1724622648069,-500.0,0.00013698,2]
[335937302,1724622648078,-615.2,0.00013698,2]
[335937303,1724622648087,-1135.98,0.00013698,2]
[335937304,1724622648097,-1303.45,0.00013698,2]
[335937305,1724622648108,-500.0,0.00013698,2]
[335937306,1724622648119,-644.18,0.00013698,2]
[335937307,1724622648130,-500.0,0.00013698,2]
[335937308,1724622648140,-500.0,0.00013698,2]
[335937309,1724622648150,-740.07,0.00013698,2]
[335937310,1724622648161,-1226.98,0.00013698,2]
[335937311,1724622648171,-500.0,0.00013698,2]
[335937312,1724622648180,-977.27,0.00013698,2]
[335937313,1724622648190,-500.0,0.00013698,2]
[335937314,1724622648199,-462.57063507,0.00013698,2]
[335937315,1724622648209,-198.93275147,0.00013698,2]
[335937316,1724622648218,-888.73,0.00013698,2]
[335937317,1724622648227,-500.0,0.00013698,2]
[335937318,1724622648236,-500.0,0.00013698,2]
[335937319,1724622648245,-500.0,0.00013698,2]
[335937320,1724622648254,-603.47,0.00013698,2]
[335937321,1724622648264,-500.0,0.00013698,2]
[335937322,1724622648274,-500.0,0.00013698,2]
[335937323,1724622648284,-613.76,0.00013698,2]
[335937324,1724622648292,-500.0,0.00013698,2]
[335937325,1724622648301,-500.0,0.00013698,2]
[335937326,1724622648310,-548.37,0.00013698,2]
[335937327,1724622648320,-500.0,0.00013698,2]
[335937328,1724622648329,-500.0,0.00013698,2]
[335937329,1724622648339,-500.0,0.00013698,2]
[335937330,1724622648348,-500.0,0.00013698,2]
[335937331,1724622648357,-500.0,0.00013698,2]
[335937332,1724622648369,-873.05,0.00013698,2]
[335937333,1724622648378,-629.03,0.00013698,2]
[335937334,1724622648388,-500.0,0.00013698,2]
[335937335,1724622648396,-960.75,0.00013698,2]
[335937336,1724622648406,-514.47,0.00013698,2]
[335937337,1724622648415,-556.33,0.00013698,2]
[335937338,1724622648424,-500.0,0.00013698,2]
[335937339,1724622648433,-539.13,0.00013698,2]
[335937340,1724622648443,-601.94,0.00013698,2]
[335937341,1724622648452,-832.1,0.00013698,2]
[335937342,1724622648464,-531.39,0.00013698,2]
[335937343,1724622648482,-1074.43,0.00013698,2]
[335937344,1724622648492,-500.0,0.00013698,2]
[335937345,1724622648501,-500.0,0.00013698,2]
[335937346,1724622648511,-500.0,0.00013698,2]
[335937347,1724622648521,-903.35,0.00013698,2]
[335937348,1724622648530,-500.0,0.00013698,2]
[335937349,1724622648540,-500.0,0.00013698,2]
[335937350,1724622648550,-500.0,0.00013698,2]
[335937351,1724622648560,-500.0,0.00013698,2]
[335937352,1724622648570,-594.36964418,0.00013698,2]
[335937353,1724622648580,-1365.09,0.00013698,2]
[335937354,1724622648589,-878.73,0.00013698,2]
[335937355,1724622648599,-811.714428,0.00013698,2]
[335937356,1724622648608,-828.35,0.00013698,2]
[335937357,1724622648617,-500.0,0.00013698,2]
[335937358,1724622648627,-731.53,0.00013698,2]
[335937359,1724622648638,-566.62,0.00013698,2]
[335937360,1724622648649,-500.0,0.00013698,2]
[335937361,1724622648659,-763.37,0.00013698,2]
[335937362,1724622648669,-500.0,0.00013698,2]
[335937363,1724622648679,-500.0,0.00013698,2]
[335937364,1724622648689,-651.29,0.00013698,2]
[335937365,1724622648699,-444.35125754,0.00013698,2]
[335937366,1724622648709,-600.97,0.00013698,2]
[335937367,1724622648724,-500.0,0.00013698,2]
[335937368,1724622648733,-1244.83,0.00013698,2]
[335937369,1724622648743,-500.0,0.00013698,2]
[335937370,1724622648753,-547.12,0.00013698,2]
[335937371,1724622648762,-500.0,0.00013698,2]
[335937372,1724622648770,-817.47,0.00013698,2]
[335937373,1724622648781,-500.0,0.00013698,2]
[335937374,1724622648791,-500.0,0.00013698,2]
[335937375,1724622648801,-651.58,0.00013698,2]
[335937376,1724622648812,-500.0,0.00013698,2]
[335937377,1724622648823,-500.0,0.00013698,2]
[335937378,1724622648832,-884.91,0.00013698,2]
[335937379,1724622648842,-500.0,0.00013698,2]
[335937380,1724622648852,-500.0,0.00013698,2]
[335937381,1724622648863,-500.0,0.00013698,2]
[335937382,1724622648873,-500.0,0.00013698,2]
[335937383,1724622648882,-500.0,0.00013698,2]
[335937384,1724622648894,-500.0,0.00013698,2]
[335937385,1724622648904,-500.0,0.00013698,2]
[335937386,1724622648914,-1145.17,0.00013698,2]
[335937387,1724622648923,-724.35,0.00013698,2]
[335937388,1724622648934,-970.05,0.00013698,2]
[335937389,1724622648944,-1021.81,0.00013698,2]
[335937390,1724622648954,-500.0,0.00013698,2]
[335937391,1724622648964,-1023.87,0.00013698,2]
[335937392,1724622648977,-953.03,0.00013698,2]
[335937393,1724622648988,-698.55,0.00013698,2]
[335937394,1724622648997,-532.42,0.00013698,2]
[335937395,1724622649006,-613.98,0.00013698,2]
[335937396,1724622649015,-519.62,0.00013698,2]
[335937397,1724622649025,-500.0,0.00013698,2]
[335937398,1724622649036,-813.39,0.00013698,2]
[335937399,1724622649045,-500.0,0.00013698,2]
[335937400,1724622649055,-826.76,0.00013698,2]
[335937401,1724622649064,-16109.54,0.00013698,2]
[335937402,1724622649074,-500.0,0.00013698,2]
[335937403,1724622649083,-500.0,0.00013698,2]
[335937404,1724622649092,-500.0,0.00013698,2]
[335937405,1724622649102,-500.0,0.00013698,2]
[335937406,1724622649112,-799.52,0.00013698,2]
[335937407,1724622649122,-500.0,0.00013698,2]
[335937408,1724622649132,-500.0,0.00013698,2]
[335937409,1724622649141,-500.0,0.00013698,2]
[335937410,1724622649151,-500.0,0.00013698,2]
[335937411,1724622649160,-500.0,0.00013698,2]
[335937412,1724622649170,-851.95,0.00013698,2]
[335937413,1724622649180,-500.0,0.00013698,2]
[335937414,1724622649189,-500.0,0.00013698,2]
[335937415,1724622649199,-500.0,0.00013698,2]
[335937416,1724622649209,-500.0,0.00013698,2]
[335937417,1724622649221,-500.0,0.00013698,2]
[335937418,1724622649231,-500.0,0.00013698,2]
[335937419,1724622649240,-500.0,0.00013698,2]
[335937420,1724622649251,-928.54,0.00013698,2]
[335937421,1724622649260,-500.0,0.00013698,2]
[335937422,1724622649270,-500.0,0.00013698,2]
[335937423,1724622649280,-500.0,0.00013698,2]
[335937424,1724622649290,-297.8,0.00013698,2]
[335937425,1724622649300,-1024.6,0.00013698,2]
[335937426,1724622649309,-500.0,0.00013698,2]
[335937427,1724622649319,-1342.44,0.00013698,2]
[335937428,1724622649328,-776.79,0.00013698,2]
[335937429,1724622649338,-4374.54,0.00013698,2]
[335937430,1724622649347,-500.0,0.00013698,2]
[335937431,1724622649357,-500.0,0.00013698,2]
[335937432,1724622649367,-679.11,0.00013698,2]
[335937433,1724622649376,-500.0,0.00013698,2]
[335937434,1724622649386,-665.69,0.00013698,2]
[335937435,1724622649395,-578.02,0.00013698,2]
[335937436,1724622649405,-794.33,0.00013698,2]
[335937437,1724622649414,-500.0,0.00013698,2]
[335937438,1724622649424,-500.0,0.00013698,2]
[335937439,1724622649434,-500.0,0.00013698,2]
[335937440,1724622649443,-1209.96,0.00013698,2]
[335937441,1724622649452,-500.0,0.00013698,2]
[335937442,1724622649462,-500.0,0.00013698,2]
[335937443,1724622649472,-610.7,0.00013698,2]
[335937444,1724622649481,-5108.81,0.00013698,2]
[335937445,1724622649490,-524.36,0.00013698,2]
[335937446,1724622649500,-829.78,0.00013698,2]
[335937447,1724622649509,-2587.38,0.00013698,2]
[335937448,1724622649519,-500.0,0.00013698,2]
[335937449,1724622649529,-500.0,0.00013698,2]
[335937450,1724622649539,-500.0,0.00013698,2]
[335937451,1724622649548,-461.76513693,0.00013698,2]
[335937452,1724622649558,-215.62374871,0.00013698,2]
[335937453,1724622649567,-827.38,0.00013698,2]
[335937454,1724622649577,-500.0,0.00013698,2]
[335937455,1724622649587,-500.0,0.00013698,2]
[335937456,1724622649768,-634.73,0.00013698,2]
[335937457,1724622649809,-500.0,0.00013698,2]
[335937458,1724622649822,-500.0,0.00013698,2]
[335937459,1724622649832,-500.0,0.00013698,2]
[335937460,1724622649842,-500.0,0.00013698,2]
[335937461,1724622649851,-621.74,0.00013698,2]
[335937462,1724622649861,-1020.16,0.00013698,2]
[335937463,1724622649871,-1406.15,0.00013698,2]
[335937464,1724622649881,-515.42,0.00013698,2]
[335937465,1724622649890,-1833.2,0.00013698,2]
[335937466,1724622649900,-596.75,0.00013698,2]
[335937467,1724622649910,-500.0,0.00013698,2]
[335937468,1724622649920,-6222.57,0.00013698,2]
[335937469,1724622649930,-793.32,0.00013698,2]
[335937470,1724622649941,-776.04,0.00013698,2]
[335937471,1724622649951,-576.9,0.00013698,2]
[335937472,1724622649963,-2830.14,0.00013698,2]
[335937473,1724622649973,-833.88,0.00013698,2]
[335937474,1724622649984,-500.0,0.00013698,2]
[335937475,1724622649993,-508.94,0.00013698,2]
[335937476,1724622650002,-500.0,0.00013698,2]
[335937477,1724622650011,-500.0,0.00013698,2]
[335937478,1724622650021,-500.0,0.00013698,2]
[335937479,1724622650030,-910.12,0.00013698,2]
[335937480,1724622650040,-475.21189041,0.00013698,2]
[335937481,1724622650049,-500.0,0.00013698,2]
[335937482,1724622650060,-500.0,0.00013698,2]
[335937483,1724622650070,-500.0,0.00013698,2]
[335937484,1724622650079,-986.26,0.00013698,2]
[335937485,1724622650089,-678.97,0.00013698,2]
[335937486,1724622650099,-500.0,0.00013698,2]
[335937487,1724622650108,-500.0,0.00013698,2]
[335937488,1724622650117,-1231.37,0.00013698,2]
[335937489,1724622650127,-518.4,0.00013698,2]
[335937490,1724622650136,-709.59,0.00013698,2]
[335937491,1724622650146,-500.0,0.00013698,2]
[335937492,1724622650156,-1494.26,0.00013698,2]
[335937493,1724622650166,-500.0,0.00013698,2]
[335937494,1724622650175,-500.0,0.00013698,2]
[335937495,1724622650184,-837.84,0.00013698,2]
[335937496,1724622650194,-1182.04,0.00013698,2]
[335937497,1724622650203,-593.407744,0.00013698,2]
[335937498,1724622650214,-593.407744,0.00013698,2]
[335937499,1724622650224,-593.407744,0.00013698,2]
[335937500,1724622650233,-593.407744,0.00013698,2]
[335937501,1724622650243,-593.407744,0.00013698,2]
[335937502,1724622650253,-575.98,0.00013698,2]
[335937503,1724622650264,-500.0,0.00013698,2]
[335937504,1724622650274,-15736.83165542,0.00013698,2]
[335937522,1724623207408,176.92931721,0.00027,120]
[335937552,1724623699761,4476.74619544,0.00011999,2]
[335937553,1724623711055,2167.30721455,0.00011999,2]
[335937591,1724623832150,-160.714285,0.00012319,2]
[335937592,1724623832160,-160.714285,0.00012368,2]
[335937593,1724623832169,-160.714285,0.00012418,2]
[335937594,1724623832179,-160.714285,0.00012467,2]
[335937595,1724623832188,-160.714285,0.00012517,2]
[335937596,1724623832197,-155.10798056,0.00012551,2]
[335937597,1724623832206,-160.714285,0.00012566,2]
[335937598,1724623832216,-160.714285,0.00012615,2]
[335937599,1724623832227,-160.714285,0.00012665,2]
[335937600,1724623832238,-160.714285,0.00012714,2]
[335937601,1724623832251,-160.714285,0.00012763,2]
[335937602,1724623832260,-160.714285,0.00012813,2]
[335937603,1724623832270,-160.714285,0.00012862,2]
[335937604,1724623832279,-269.759744,0.00012877,2]
[335937605,1724623832288,-156.90827492,0.00012886,2]
[335937606,1724623832297,-448.26148972,0.00012898,2]
[335937607,1724623832309,-362.90362998,0.00012898,2]
[335937608,1724623832319,-160.714285,0.00012912,2]
[335937609,1724623832329,-876.11114391,0.00012934,2]
[335937610,1724623832338,-160.50654328,0.00012934,2]
[335937611,1724623832347,-160.714285,0.00012961,2]
[335937612,1724623832356,-154.72922386,0.00012971,2]
[335937613,1724623832366,-154.74379546,0.00012991,2]
[335937614,1724623832376,-300.0,0.00012998,2]
[335937615,1724623832386,-24259.77104487,0.00012999,2]
[335937658,1724623838306,-4065.05595513,0.00012999,2]
[335937659,1724623838316,-449.70342664,0.00013025,2]
[335937661,1724623838327,-465.00023632,0.00013157,2]
[335937662,1724623838336,-1416.0,0.00013305,2]
[335937664,1724623838346,-600.0,0.00013413,2]
[335937666,1724623838355,-4279.54392551,0.00013497,2]
[335937668,1724623838364,-1226.66910013,0.00013498,2]
[335937669,1724623838373,-783.072661,0.00013505,2]
[335937670,1724623838382,-1226.66910011,0.00013523,2]
[335937671,1724623838392,-1226.66910011,0.00013548,2]
[335937672,1724623838401,-1226.66910011,0.00013572,2]
[335937673,1724623838410,-5728.66418882,0.00013579,2]
[335937924,1724623843449,-4449.43885449,0.00013579,2]
[335937930,1724623846053,-277.34605672,0.00013579,2]
[335937931,1724623846082,-24631.94027894,0.00013579,2]
[335937932,1724623846092,-2596.97571274,0.00013596,2]
[335937933,1724623846101,-1226.66910011,0.00013597,2]
[335937934,1724623846110,-586.58149096,0.00013597,2]
[335937935,1724623846120,-812.15878851,0.00013598,2]
[335937936,1724623846130,-153.0,0.000136,2]
[335937937,1724623846139,-3000.0,0.000136,30]
[335937938,1724623846149,-603.0,0.000136,2]
[335937939,1724623846158,-3000.0,0.0001361,30]
[335937940,1724623846167,-3000.0,0.0001362,30]
[335937941,1724623846177,-5620.919991,0.0001363,30]
[335937942,1724623846186,-5252.50660702,0.00013671,2]
[335937943,1724623846195,-500.0,0.00013673,2]
[335937944,1724623846204,-500.0,0.00013673,2]
[335937945,1724623846214,-500.0,0.00013673,2]
[335937946,1724623846224,-783.072661,0.00013673,2]
[335937947,1724623846234,-2788.58102768,0.00013688,2]
[335937995,1724624921276,529.88200369,0.0001,2]
[335938094,1724625032379,-209.78094003,0.00012689,2]
[335938096,1724625032390,-256.271756,0.00012877,2]
[335938098,1724625032400,-150.0,0.00013263,2]
[335938100,1724625032410,-1416.0,0.00013474,2]
[335938102,1724625032421,-150.112233,0.000135,2]
[335938104,1724625032431,-173.499904,0.00013505,2]
[335938106,1724625032442,-730.94290974,0.00013598,2]
[335938108,1724625032455,-150.112233,0.000136,2]
[335938111,1724625032466,-150.112233,0.000136,2]
[335938113,1724625032476,-150.0,0.000136,30]
[335938115,1724625032486,-2000.0,0.00013654,2]
[335938117,1724625032495,-599.36779123,0.00013663,2]
[335938219,1724625038286,-1400.63220877,0.00013663,2]
[335938221,1724625038296,-300.0,0.00013671,2]
[335938223,1724625038305,-452.87667486,0.00013672,2]
[335938237,1724625038433,-595.0,0.00013672,2]
[335938241,1724625038446,-952.12332514,0.00013672,2]
[335938243,1724625038456,-500.0,0.00013673,2]
[335938245,1724625038465,-500.0,0.00013673,2]
[335938247,1724625038474,-500.0,0.00013673,2]
[335938249,1724625038483,-155.0,0.0001368,2]
[335938251,1724625038492,-2000.0,0.00013681,2]
[335938252,1724625038501,-1978.13460544,0.00013688,5]
[335938268,1724625040536,-3391.76335903,0.00013688,5]
[335938270,1724625040546,-4393.17662247,0.00013688,2]
[335938401,1724625046292,-154.74379546,0.00012121,2]
[335938402,1724625046302,-876.11114391,0.00012121,2]
[335938403,1724625046312,-70639.60022232,0.00013688,2]
[335938430,1724625117616,154.72922386,0.00011999,2]
[335938556,1724626238578,-160.71429,0.0001246,2]
[335938557,1724626238588,-257.018266,0.00012877,2]
[335938558,1724626238597,-160.50654328,0.00012934,2]
[335938559,1724626238607,-493.41512582,0.0001295,2]
[335938560,1724626238617,-362.90362998,0.00012999,2]
[335938561,1724626238626,-862.64603536,0.00013,2]
[335938562,1724626238636,-160.71429,0.00013109,2]
[335938563,1724626238645,-465.00450202,0.00013123,2]
[335938564,1724626238654,-323.81791502,0.00013233,2]
[335938566,1724626238663,-300.0,0.00013472,2]
[335938568,1724626238673,-355.813,0.00013473,2]
[335938570,1724626238682,-5812.516,0.00013473,2]
[335938572,1724626238692,-1097.58694557,0.0001359,2]
[335938574,1724626238701,-2150.322645,0.00013598,2]
[335938576,1724626238710,-300.0,0.000136,4]
[335938578,1724626238719,-500.0,0.00013673,2]
[335938580,1724626238728,-500.0,0.00013673,2]
[335938582,1724626238737,-500.0,0.00013673,2]
[335938584,1724626238746,-8601.94114662,0.00013688,2]
[335938656,1724626240755,-2119.6266852,0.00013688,2]
[335938658,1724626240767,-13926.6,0.00013688,2]
[335938659,1724626240779,-32316.88159601,0.00013688,2]
[335938711,1724626243591,-183.69809633,0.00013673,2]
[335938712,1724626243600,-2684.94898224,0.00013688,5]
[335938713,1724626243611,-2943.86914725,0.00013688,2]
[335938824,1724627432676,-580.84546873,0.00012782,2]
[335938856,1724627438821,-244.167352,0.00012877,2]
[335938858,1724627438832,-568.97836162,0.00012934,2]
[335938860,1724627438842,-156.95058923,0.00012934,2]
[335938862,1724627438852,-493.52644239,0.00012991,2]
[335938864,1724627438863,-320.5291341,0.00013,2]
[335938867,1724627438873,-150.0,0.00013,2]
[335938869,1724627438882,-893.67640628,0.00013163,2]
[335938870,1724627438891,-177.303419,0.00013505,2]
[335938872,1724627438901,-578.22761932,0.00013598,2]
[335938875,1724627438910,-150.0,0.000136,30]
[335938877,1724627438920,-538.20058823,0.00013673,2]
[335938879,1724627438929,-500.0,0.00013673,2]
[335938881,1724627438938,-177.303419,0.00013673,2]
[335938883,1724627438948,-300.0,0.00013676,2]
[335938885,1724627438957,-300.0,0.00013676,2]
[335938887,1724627438969,-19351.13666883,0.00013678,2]
[335938889,1724627438981,-6153.777856,0.00013678,2]
[335938891,1724627438992,-1074.20802079,0.00013678,2]
[335938893,1724627439004,-15860.84125196,0.00013678,2]
[335939046,1724627440902,-2073.06624304,0.00013678,2]
[335939047,1724627440915,-2773.30000008,0.00013678,2]
[335939048,1724627440927,-3525.00411167,0.00013678,2]
[335939069,1724627551062,503.67,0.00027,120]
[335939099,1724628339146,-300.0,0.00012515,2]
[335939100,1724628339170,-24890.0,0.00012516,2]
[335939101,1724628339192,-231.958984,0.00012877,2]
[335939102,1724628339213,-466.18766611,0.0001309,2]
[335939103,1724628339234,-154.74467129,0.00013477,2]
[335939104,1724628339256,-442.429111,0.00013505,2]
[335939105,1724628339278,-657.84861873,0.00013598,2]
[335939106,1724628339299,-3000.0,0.00013598,2]
[335939107,1724628339320,-2338.66734174,0.00013598,2]
[335939108,1724628339344,-500.0,0.00013673,2]
[335939109,1724628339364,-442.429111,0.00013673,2]
[335939110,1724628339386,-1156.64853137,0.00013687,2]
[335939111,1724628339408,-1342.47449112,0.00013688,5]
[335939112,1724628339429,-29505.68189198,0.00013688,2]
[335939137,1724628583305,272.045405,0.00011984,2]
[335939179,1724628631784,-272.045405,0.00012299,2]
[335939181,1724628631795,-137.46149039,0.00012614,2]
[335939184,1724628631816,-134.58391461,0.00012614,2]
[335939186,1724628631826,-220.361034,0.00012877,2]
[335939187,1724628631837,-2768.64018852,0.000129,2]
[335939189,1724628631850,-4469.72911038,0.000129,2]
[335939191,1724628631861,-272.045405,0.0001293,2]
[335939192,1724628631872,-272.045405,0.00013245,2]